Cogmind - Beta 11 @@@ ROGUE MODE // 2022.03.18 @ 21:38:35 Player: Gris Result: Destroyed by G-47 Trooper with Particle Gun Performance ------------- Evolutions (0) 0 Regions Visited (2) 400 Robots Destroyed (24) 120 Value Destroyed (503) 503 Prototype IDs (2) 40 Alien Tech Used (0) 0 Bonus (0) 0 TOTAL SCORE: 1063 Bonus ------- None Cogmind --------- Core Integrity 0/250 Matter 265/300 Energy 100/100 System Corruption 1% Temperature Cool (9) Movement Core (150) Ox2 Location -10/Mines Parts ------- > --- POWER (1) -------- (None) > --- PROPULSION (2) --- (None) > --- UTILITY (2) ------ Small Storage Unit > --- WEAPON (2) ------- Assault Rifle Assault Rifle > --- INVENTORY (8) ---- High-capacity Storage Unit Large Battery (200) High-capacity Matter Pod (0) ECM Suite Grenade Launcher Peak State ------------ > --- POWER ------------ Light Ion Engine > --- PROPULSION ------- Light Treads Light Treads > --- UTILITY ---------- Small Storage Unit Sensor Array > --- WEAPON ----------- Light Cannon Light Cannon > --- INVENTORY -------- Ion Engine Light Ion Engine Light Ion Engine Medium Laser Assault Rifle Assault Rifle Grenade Launcher [Rating: 7] Favorites ----------- Power Light Ion Engine Engine Light Ion Engine Propulsion Light Treads Treads Light Treads Hover Unit Hover Unit Utility Small Storage Unit Device Sensor Array Storage Small Storage Unit Protection Light Armor Plating Weapon Light Cannon Energy Gun Medium Laser Ballistic Gun Assault Rifle Ballistic Cannon Light Cannon Build | -11 -10 -10 ------- Run | Scr Mat Min Slots Evolved . | . . . Power . | . . . Propulsion . | . . . Utility . | . . . Weapon . | . . . Parts Attached 17 | 6 9 2 Power 4 | 1 3 . Engine 4 | 1 3 . Core . | . . . Reactor . | . . . Propulsion 3 | 2 1 . Treads 2 | 2 . . Leg . | . . . Wheel . | . . . Hover 1 | . 1 . Flight . | . . . Utility 3 | 1 2 . Device 1 | . 1 . Storage 1 | 1 . . Processor . | . . . Hackware . | . . . Protection 1 | . 1 . Artifact . | . . . Weapon 7 | 2 3 2 Energy Gun 1 | . 1 . Energy Cannon . | . . . Ballistic Gun 4 | 2 . 2 Ballistic Cannon 2 | . 2 . Launcher . | . . . Special Weapon . | . . . Impact Weapon . | . . . Slashing Weapon . | . . . Piercing Weapon . | . . . Special Melee Weapon . | . . . Unidentified Prototypes . | . . . Parts Lost 5 | . . 5 Power 1 | . . 1 Propulsion 1 | . . 1 Utility 1 | . . 1 Weapon 2 | . . 2 Highest Loss Streak 4 | . . 4 To Critical Strikes . | . . . Average Slot Usage (%) 86 | . 92 69 Engine 13 | . 14 13 Treads 18 | . 24 . Hover 4 | . 1 13 Device 6 | . 8 . Storage 14 | . 14 14 Protection 1 | . 1 1 Energy Gun 4 | . 1 13 Ballistic Gun 5 | . 7 1 Ballistic Cannon 17 | . 18 12 Naked Turns . | . . . Heaviest Build 18 | 12 18 18 Greatest Support 40 | 3 40 6 Greatest Overweight (x) 3 | 3 3 2 Average Overweight (x) . | 2 . 2 Largest Inventory Capacity 8 | 8 8 8 Average Capacity 7 | 7 8 8 Most Carried 8 | 6 8 7 Average Carried 6 | 2 6 6 Final Capacity 8 | 8 8 8 Final Carried 7 | 2 7 5 Class Distribution -------------------- 100% | Mutant Dominant Class ---------------- Mutant | -10/Materials Mutant | -10/Mines Resources | -11 -10 -10 ----------- Run | Scr Mat Min Matter Collected 706 | 260 377 69 Remotely . | . . . Salvage Created 562 | . 491 71 Parts 52 | . 48 4 Haulers Intercepted . | . . . Recyclers Shooed . | . . . Parts Field Recycled . | . . . Retrieved Matter . | . . . Parts Self-Destructed . | . . . Prevented . | . . . Kills | -11 -10 -10 ------- Run | Scr Mat Min Combat Hostiles Destroyed 18 | . 15 3 Guns 8 | . 6 2 Cannons 10 | . 9 1 Classes Destroyed 6 | . 6 . Worker 1 | . 1 . Builder 1 | . 1 . Operator 1 | . 1 . Watcher 3 | . 3 . Swarmer 8 | . 6 2 Grunt 10 | . 9 1 Best Kill Streak 4 | . 4 2 Combat Bots Only 4 | . 4 2 Max Kills in Single Turn 2 | . 2 1 Gunslinging . | . . . Exploded . | . . . Melee . | . . . Uniques/NPCs Destroyed . | . . . Combat | -11 -10 -10 -------- Run | Scr Mat Min Damage Taken 1068 | . 525 543 Core 267 | . 109 158 Absorbed by Shields . | . . . Core Remaining (%) 100 | 100 . . Volleys Fired 72 | . 42 30 Largest 2 | . 2 2 Hottest 85 | . 85 85 Shots Fired 123 | . 81 42 Gun 73 | . 44 29 Cannon 50 | . 37 13 Launcher . | . . . Special . | . . . Kinetic 96 | . 79 17 Thermal 27 | . 2 25 Explosive . | . . . Electromagnetic . | . . . Robot Hit Streak 5 | . 5 5 Robot Miss Streak 6 | . 6 6 Penetration Max . | . . . Secondary Targets . | . . . Shots Hit Robots 56 | . 36 20 Core Hits 30 | . 25 5 Critical Kills . | . . . Critical Parts Destroyed . | . . . Critical Strikes 3 | . 2 1 Burn 1 | . . 1 Blast 2 | . 2 . Melee Attacks . | . . . Impact . | . . . Slashing . | . . . Piercing . | . . . Sneak Attacks . | . . . Combat Hostiles . | . . . Follow-up Attacks . | . . . Damage Inflicted 906 | . 595 311 Guns 464 | . 290 174 Cannons 439 | . 302 137 Explosions . | . . . Melee . | . . . Ramming 3 | . 3 . Kinetic 727 | . 579 148 Thermal 176 | . 13 163 Explosive . | . . . Electromagnetic . | . . . Impact . | . . . Slashing . | . . . Piercing . | . . . Highest Corruption 1 | . 1 1 Average Corruption 1 | . 1 1 Corruption Purged . | . . . Corruption Blocked . | . . . Effects 16 | . 11 5 Message Errors 3 | . 2 1 Matter Fused 8 | . 4 4 Heat Flow Errors 1 | . 1 . Energy Discharges 1 | . 1 . Data Loss (minor) 3 | . 3 . Overload Shots . | . . . Overflow Damage . | . . . Projectiles . | . . . Explosions . | . . . Melee . | . . . Knockbacks 2 | . 1 1 Impact . | . . . Kinetic 2 | . 1 1 Secondary . | . . . Self-Inflicted Damage 1 | . 1 . Shots . | . . . Rammed 1 | . 1 . Targets Rammed 1 | . 1 . Kicked . | . . . Crushed . | . . . Highest Temperature 252 | . 184 252 Average Temperature 123 | . 44 146 Received Heat Transfer 291 | . 111 180 Effects 1 | . . 1 Interference 1 | . . 1 Siege Activations . | . . . Robots Corrupted . | . . . Combat Hostiles . | . . . Parts Fried . | . . . Impact Corruptions . | . . . Robots Melted . | . . . Combat Hostiles . | . . . Parts Melted . | . . . Heat Transferred 592 | . 37 555 Parts Sabotaged . | . . . Parts Stolen . | . . . Parts Stripped . | . . . Power Chain Reactions . | . . . Missiles Intercepted . | . . . Alert | -11 -10 -10 ------- Run | Scr Mat Min Peak Influence 223 | . 223 54 Initial 14 | . . 14 Average 76 | . 94 35 Maximum Alert Level 1 | . 1 . Low Security (%) 98 | 100 97 100 Level 1 1 | . 2 . Level 2 . | . . . Level 3 . | . . . Level 4 . | . . . Level 5 . | . . . High Security . | . . . Max Security . | . . . Squads Dispatched 5 | . 5 . Investigation 3 | . 3 . Extermination . | . . . Reinforcement 2 | . 2 . Assault . | . . . Garrison . | . . . Intercept . | . . . Searches Triggered . | . . . Construction Impeded . | . . . Haulers Reinforced . | . . . Active Scanning Responses . | . . . Cargo Convoy Interrupts . | . . . Stealth | -11 -10 -10 --------- Run | Scr Mat Min Distress Signals 1 | . 1 . Communications Jammed . | . . . Distress Signals . | . . . Times Spotted 31 | . 26 5 Peak Tracking Total 5 | . 5 3 Tactical Retreats 1 | . . 1 Traps | -11 -10 -10 ------- Run | Scr Mat Min Traps Triggered 4 | . 4 . Indirectly . | . . . Trap Hack Attempts . | . . . Triggered . | . . . Disarmed 3 | . 3 . Reprogrammed . | . . . Reused . | . . . Traps Extracted . | . . . Installed . | . . . Triggered . | . . . Machines | -11 -10 -10 ---------- Run | Scr Mat Min Machines Disabled . | . . . Max in Single Turn . | . . . Machines Sabotaged . | . . . Garrisons Compromised . | . . . Overloaded Fab Kills . | . . . Hacking | -11 -10 -10 --------- Run | Scr Mat Min Machines Accessed 7 | . 7 . Terminals 5 | . 5 . Fabricators . | . . . Repair Stations 1 | . 1 . Recycling Units 1 | . 1 . Scanalyzers . | . . . Garrison Access . | . . . Total Hacks 22 | . 22 . Successful 14 | . 14 . Failed 8 | . 8 . Catastrophic . | . . . Database Lockouts . | . . . Manual . | . . . Terminals 19 | . 19 . Fabricators . | . . . Repair Stations 2 | . 2 . Recycling Units 1 | . 1 . Scanalyzers . | . . . Garrison Access . | . . . Terminal Hacks 12 | . 12 . Record 1 | . 1 . Prototype ID Bank 1 | . 1 . Terminal Index 1 | . 1 . Repair Station Index 1 | . 1 . Alert Level 2 | . 2 . Locate Traps 1 | . 1 . Disarm Traps 1 | . 1 . Dispatch Records 1 | . 1 . Surveillance Status 1 | . 1 . Zone Layout 2 | . 2 . Fabricator Hacks . | . . . Repair Station Hacks 1 | . 1 . Scan Component 1 | . 1 . Recycling Unit Hacks 1 | . 1 . Report Inventory 1 | . 1 . Scanalyzer . | . . . Garrison Access Hacks . | . . . Unauthorized Hacks . | . . . Terminals . | . . . Fabricators . | . . . Repair Stations . | . . . Recycling Units . | . . . Scanalyzers . | . . . Garrison Access . | . . . Data Cores Recovered . | . . . Used . | . . . Hacking Detections 4 | . 4 . Full Trace Events 1 | . 1 . Feedback Events 1 | . 1 . Corruption 1 | . 1 . Feedback Blocked . | . . . Robot Schematics Acquired . | . . . Robots Built . | . . . Authchips . | . . . Time . | . . . Total Robot Build Rating . | . . . Part Schematics Acquired . | . . . Parts Built . | . . . Authchips . | . . . Time . | . . . Total Part Build Rating . | . . . Parts Repaired . | . . . Time . | . . . Parts Recycled . | . . . Recycled Matter . | . . . Retrieved Matter . | . . . Retrieved Components . | . . . Parts Scanalyzed . | . . . Part Schematics Acquired . | . . . Parts Damaged . | . . . Bothacking | -11 -10 -10 ------------ Run | Scr Mat Min Used RIF Installer . | . . . Robots Hacked . | . . . Non-combat . | . . . Combat . | . . . Robot Hacks Applied . | . . . Relay Couplers Released . | . . . Fabnet Peak Effective % . | . . . Robots Rewired . | . . . Allies Hacked . | . . . Hacks Repelled . | . . . Allies | -11 -10 -10 -------- Run | Scr Mat Min Total Allies . | . . . Largest Group . | . . . Highest-Rated Group . | . . . Highest-Rated Ally . | . . . Total Orders . | . . . Ally Attacks . | . . . Total Damage . | . . . Kills . | . . . Allies Corrupted . | . . . Allies Melted . | . . . Intel | -11 -10 -10 ------- Run | Scr Mat Min Robot Analysis Total . | . . . Derelict Logs Recovered 1 | . . 1 Drone Launches . | . . . Drone Recoveries . | . . . Exploration | -11 -10 -10 ------------- Run | Scr Mat Min Turns Passed 2275 | 86 1628 561 Spaces Moved 1182 | 46 875 261 Core 105 | 46 51 8 Treads 725 | . 725 . Legs . | . . . Wheels . | . . . Hover 352 | . 99 253 Flight . | . . . Fastest Speed 50 | 50 120 150 Average Speed 167 | 159 164 179 Slowest Speed 200 | 200 200 180 Overloaded Moves . | . . . Propulsion Burnouts . | . . . Robots Hopped . | . . . Cave-ins Triggered . | . . . Exploration Rate (%) 50 | 3 87 61 Regions Visited 2 Branch Regions 1 Pre-discovered Areas 1 | . . 1 Known Exits Taken . | . . . Unknown Exits Taken 2 | 1 1 . Scrap Searched 1 | . . 1 Spaces Dug . | . . . Terrain Destroyed . | . . . Melee . | . . . Projectile . | . . . AOE . | . . . Terrain Rammed . | . . . Walls Destroyed . | . . . Machines Disabled . | . . . Actions | -11 -10 -10 --------- Run | Scr Mat Min Total 1353 | 58 983 312 Wait 58 | 1 38 19 Move 1180 | 45 874 261 Hop . | . . . Pick Up 19 | 6 13 . Fast Attach 3 | 2 1 . Attach 11 | 4 5 2 Detach . | . . . Swap 3 | . 3 . Drop 6 | . 6 . Fire 72 | . 42 30 Melee . | . . . Ram 1 | . 1 . Kick . | . . . Crush . | . . . Escape Stasis . | . . . Rewire . | . . . Trap . | . . . Miscellaneous . | . . . Route ------- -11/Scrapyard -10/Materials (discovered 5 exits: [*Mat x3] / [*Min x2]) -10/Mines (discovered 1 exit: [*Mat]) History --------- Turn | Location | Event 8 | -11/Scrapyard | Discovered new exit (range 15) 87 | -11/Scrapyard | Entered Materials 178 | -10/Materials | Discovered new exit (range 16) 316 | -10/Materials | Build established: Mutant 653 | -10/Materials | Discovered new exit (range 10) 809 | -10/Materials | Discovered new exit (range 14) 844 | -10/Materials | Discovered new exit (range 14) 1491 | -10/Materials | Discovered new exit (range 4) 1715 | -10/Materials | Entered Mines 1743 | -10/Mines | Core integrity fell below 50% 1844 | -10/Mines | Found a hidden stash of uninstalled traps 2098 | -10/Mines | Learned location of Zion (-7) 2192 | -10/Mines | Discovered new exit (range 13) 2246 | -10/Mines | Core integrity fell below 20% 2276 | -10/Mines | Destroyed by G-47 Trooper with Particle Gun Last Messages --------------- Searching scrap... Found Mining Laser. Found ECM Suite. Found Med. Matter Pod. Found 36 Matter. Acquired 36 matter. Acquired derelict log, extracted data. World map updated: -7/Zion. VMVWMIG 1:&IUUXVVP%VARLKZ EXIT=FOUND Lgt. Cannon destroyed. Ion Engine destroyed. G-47 Trooper suffers critical hit (Burn). G-47 Trooper heat damages Lgt. Nuclear Core. Hover Unit destroyed. Critical hit (Burn: +37). G-47 Trooper overheating. G-47 Trooper heat short circuits Imp. Heat Sink. Med. Laser destroyed. G-34 Mercenary destroyed. Map ----- +----------------------------------------------------+ | ?????# ##???## #????????? | | ?????# #???## ##????????? | | ?????# #???# """ ##?????????? | | ????## #???# """ ##??????????? | | ???## #???## """ ##??????????? | | #### ##???## ##?????????? | | # #????## #?????????? | | # ### #?????## #?????????? | | # ### ##??????## ##?????????? | | # ## ##????????# ####??????????? | | # ##??????#### ##?????????????? | | # # ##???????#! ! ##??????????????? | | # ####????????#|## ##???????????????? | | # #?????####### ## #????????????????? | | # #?????# #????????????????? | | # #?????# ##########????????????????? | | # #?????# #?????????????????????????? | | # ####??# #???????????###########???? | | #### #???????????# % ???? | | #### #???????????# ??#?? | | ???# ######???????????# % """ #?? | | ???# #??????????###?### """ #?? | | ???# #?????????? ??? g """ #?? | | ???# #????????? #????# < #?? | | ???# #???????## ?????# !%= #?? | | ???# #??????? ??????# @ #?? | | ???# #?????? ???????### #####????? | | ???# #?????? #?????????# #????????? | | ???# #?????? ##????????# #????????? | | ???# #???### ##??###??# #????????? | | ???# #??## #?## #### #????????? | | ???# #### #?# #????????? | | #??# #?# ##???????? | | #?##### #??# #???????? | | ##???## #####??# #???????? | | ##???## ######## #???????? | | ##???# #???????? | | ##??# ######### #???????? | | #### #???????#### ##??????? | | ######?????### #??????? | | # ###### ##??????## #??????? | | #### #### #???????# #??????? | | ???## ## #???????# #?????? | | ????## ##??????# #????? | | ?????## #####???????# #???? | | ??????#######???????????## #???? | | ?????????????????????????## ##???? | | ??????????????????????????######????? | | ????????????????????????????????????? | | ????????????????????????????????????? | +----------------------------------------------------+ Best States ------------- Heat Dissipation 25 Energy Generation 10 Energy Capacity 250 Matter Stores 300 Matter Capacity 300 Sight Range 16 Robot Scan Range 14 Terrain Scan Density 10 Armor Coverage 150 Evasion (%) 50 Recoil Reduction 2 Item Schematics ----------------- None Robot Schematics ------------------ None Fabricated ------------ Nothing Alien Tech Used ----------------- None Achievements -------------- None Challenges ------------ None Game ------ Seed EnhancedAlertBeam Manual? 0 Play Time 00:36:16 Cumulative 3.2 hours Start 2022.03.18 @ 21:03:31 End 2022.03.18 @ 21:38:35 Sessions 1 Manual Loads 0 Difficulty Rogue Special Mode None Game No. 9 Rogue 9 Adventurer 0 Explorer 0 Win Type - Total 0 Types 0/0/0/0/0/0/0/0/0 Lore% 1 Gallery% 4 Achievement% 6 Wizard Run 0 Options --------- ASCII 0 Keyboard 0 Movement Mouse Keybinds 0 Fullscreen 1 Font 18/SmallcapsGlow Map View 76x50 Tactical HUD 0 Map Filters NONE Filters NONE Steam 1 RUN: 2fad8616-fdb2-43bd-9f0b-f54b131d1b89